[Event "Titled Tuesday Blitz August 16 Early 2022"]
[White "Yurasova, Daria"]
[Black "Danielyan, Vahe"]
[WhiteFideId "34146919"]
[BlackFideId "13304828"]
[WhiteElo "2021"]
[BlackElo "2421"]
[Result "1/2-1/2"]
[Round "04"]
[TimeControl "180+2"]
[Date "2022.08.18"]
[WhiteClock "0:00:00"]
[BlackClock "0:00:00"]

1. d4 {[%clk 0:00:00]}  d5 {[%clk 0:00:00]} 2. Nf3 {[%clk 0:00:00]}  Nf6 {[%clk 0:00:00]} 3. c4 {[%clk 0:00:00]}  dxc4 {[%clk 0:00:00]} 4. e3 {[%clk 0:00:00]}  e6 {[%clk 0:00:00]} 5. Nbd2 {[%clk 0:00:00]}  a6 {[%clk 0:00:00]} 6. Bxc4 {[%clk 0:00:00]}  c5 {[%clk 0:00:00]} 7. O-O {[%clk 0:00:00]}  b5 {[%clk 0:00:00]} 8. Be2 {[%clk 0:00:00]}  Bb7 {[%clk 0:00:00]} 9. b3 {[%clk 0:00:00]}  Nbd7 {[%clk 0:00:00]} 10. Bb2 {[%clk 0:00:00]}  Bd6 {[%clk 0:00:00]} 11. Rc1 {[%clk 0:00:00]}  O-O {[%clk 0:00:00]} 12. a4 {[%clk 0:00:00]}  cxd4 {[%clk 0:00:00]} 13. Nxd4 {[%clk 0:00:00]}  bxa4 {[%clk 0:00:00]} 14. bxa4 {[%clk 0:00:00]}  Rb8 {[%clk 0:00:00]} 15. Nc4 {[%clk 0:00:00]}  Bc7 {[%clk 0:00:00]} 16. Ba1 {[%clk 0:00:00]}  h6 {[%clk 0:00:00]} 17. Bf3 {[%clk 0:00:00]}  Nd5 {[%clk 0:00:00]} 18. Qd2 {[%clk 0:00:00]}  Nc5 {[%clk 0:00:00]} 19. a5 {[%clk 0:00:00]}  Qh4 {[%clk 0:00:00]} 20. g3 {[%clk 0:00:00]}  Qe7 {[%clk 0:00:00]} 21. Bg2 {[%clk 0:00:00]}  Rfd8 {[%clk 0:00:00]} 22. Qa2 {[%clk 0:00:00]}  Nd3 {[%clk 0:00:00]} 23. Rb1 {[%clk 0:00:00]}  N3b4 {[%clk 0:00:00]} 24. Qa3 {[%clk 0:00:00]}  Ba8 {[%clk 0:00:00]} 25. Rfc1 {[%clk 0:00:00]}  h5 {[%clk 0:00:00]} 26. h4 {[%clk 0:00:00]}  Rdc8 {[%clk 0:00:00]} 27. Bf3 {[%clk 0:00:00]}  e5 {[%clk 0:00:00]} 28. Nf5 {[%clk 0:00:00]}  Qf6 {[%clk 0:00:00]} 29. Be4 {[%clk 0:00:00]}  g6 {[%clk 0:00:00]} 30. Nh6+ {[%clk 0:00:00]}  Kg7 {[%clk 0:00:00]} 31. Nxf7 {[%clk 0:00:00]}  Kxf7 {[%clk 0:00:00]} 32. Rd1 {[%clk 0:00:00]}  Rd8 {[%clk 0:00:00]} 33. Rbc1 {[%clk 0:00:00]}  Kg7 {[%clk 0:00:00]} 34. Bg2 {[%clk 0:00:00]}  Rf8 {[%clk 0:00:00]} 35. Rd2 {[%clk 0:00:00]}  Rf7 {[%clk 0:00:00]} 36. Rcd1 {[%clk 0:00:00]}  Nxe3 {[%clk 0:00:00]} 37. Nxe3 {[%clk 0:00:00]}  Bxg2 {[%clk 0:00:00]} 38. Nxg2 {[%clk 0:00:00]}  Nc6 {[%clk 0:00:00]} 39. Ne3 {[%clk 0:00:00]}  Re8 {[%clk 0:00:00]} 40. Qc5 {[%clk 0:00:00]}  Re6 {[%clk 0:00:00]} 41. Nd5 {[%clk 0:00:00]}  Qf5 {[%clk 0:00:00]} 42. Nxc7 {[%clk 0:00:00]}  Rxc7 {[%clk 0:00:00]} 43. Qe3 {[%clk 0:00:00]}  Qf7 {[%clk 0:00:00]} 44. Rd5 {[%clk 0:00:00]}  Rce7 {[%clk 0:00:00]} 45. Re1 {[%clk 0:00:00]}  Kh7 {[%clk 0:00:00]} 46. Red1 {[%clk 0:00:00]}  e4 {[%clk 0:00:00]} 47. Rd6 {[%clk 0:00:00]}  Ne5 {[%clk 0:00:00]} 48. Rxe6 {[%clk 0:00:00]}  Qxe6 {[%clk 0:00:00]} 49. Kg2 {[%clk 0:00:00]}  Nf3 {[%clk 0:00:00]} 50. Qf4 {[%clk 0:00:00]}  Qg4 {[%clk 0:00:00]} 51. Qxg4 {[%clk 0:00:00]}  hxg4 {[%clk 0:00:00]} 52. Bc3 {[%clk 0:00:00]}  e3 {[%clk 0:00:00]} 53. fxe3 {[%clk 0:00:00]}  Rxe3 {[%clk 0:00:00]} 54. Bf6 {[%clk 0:00:00]}  Kg8 {[%clk 0:00:00]} 55. Rd8+ {[%clk 0:00:00]}  Kf7 {[%clk 0:00:00]} 56. Bg5 {[%clk 0:00:00]}  Re2+ {[%clk 0:00:00]} 57. Kf1 {[%clk 0:00:00]}  Ra2 {[%clk 0:00:00]} 58. Rd7+ {[%clk 0:00:00]}  Ke6 {[%clk 0:00:00]} 59. Re7+ {[%clk 0:00:00]}  Kf5 {[%clk 0:00:00]} 60. Rf7+ {[%clk 0:00:00]}  Ke5 {[%clk 0:00:00]} 61. Re7+ {[%clk 0:00:00]}  Kd5 {[%clk 0:00:00]} 62. Rd7+ {[%clk 0:00:00]}  Ke5 {[%clk 0:00:00]} 63. Re7+ {[%clk 0:00:00]}  Kf5 {[%clk 0:00:00]} 64. Rf7+ {[%clk 0:00:00]}  Ke4 {[%clk 0:00:00]} 65. Re7+ {[%clk 0:00:00]}  Kd3 {[%clk 0:00:00]} 66. Rd7+ {[%clk 0:00:00]}  Kc4 {[%clk 0:00:00]} 67. Rc7+ {[%clk 0:00:00]}  Kd5 {[%clk 0:00:00]} 68. Rd7+ {[%clk 0:00:00]}  Ke6 {[%clk 0:00:00]} 69. Re7+ {[%clk 0:00:00]}  Kd6 {[%clk 0:00:00]} 70. Rg7 {[%clk 0:00:00]}  Rxa5 {[%clk 0:00:00]} 71. Rxg6+ {[%clk 0:00:00]}  Kd5 {[%clk 0:00:00]} 72. Bf4 {[%clk 0:00:00]}  Ra1+ {[%clk 0:00:00]} 73. Ke2 {[%clk 0:00:00]}  Ra2+ {[%clk 0:00:00]} 74. Kd3 {[%clk 0:00:00]}  Ra3+ {[%clk 0:00:00]} 75. Kc2 {[%clk 0:00:00]}  Nd4+ {[%clk 0:00:00]} 76. Kb2 {[%clk 0:00:00]}  Rb3+ {[%clk 0:00:00]} 77. Ka2 {[%clk 0:00:00]}  Rf3 {[%clk 0:00:00]} 78. Rg5+ {[%clk 0:00:00]}  Kc4 {[%clk 0:00:00]} 79. Rxg4 {[%clk 0:00:00]}  Rf2+ {[%clk 0:00:00]} 80. Kb1 {[%clk 0:00:00]}  Kb3 {[%clk 0:00:00]} 81. Kc1 {[%clk 0:00:00]}  Ne2+ {[%clk 0:00:00]} 82. Kd1 {[%clk 0:00:00]}  Nc3+ {[%clk 0:00:00]} 83. Ke1 {[%clk 0:00:00]}  Re2+ {[%clk 0:00:00]} 84. Kf1 {[%clk 0:00:00]}  a5 {[%clk 0:00:00]} 85. Bd6 {[%clk 0:00:00]}  Rd2 {[%clk 0:00:00]} 86. Bf8 {[%clk 0:00:00]}  Rd1+ {[%clk 0:00:00]} 87. Kg2 {[%clk 0:00:00]}  Rd8 {[%clk 0:00:00]} 88. Be7 {[%clk 0:00:00]}  Rd7 {[%clk 0:00:00]} 89. Bc5 {[%clk 0:00:00]}  Rd5 {[%clk 0:00:00]} 90. Bf8 {[%clk 0:00:00]}  Rd2+ {[%clk 0:00:00]} 91. Kf1 {[%clk 0:00:00]}  Rd8 {[%clk 0:00:00]} 92. Be7 {[%clk 0:00:00]}  Rb8 {[%clk 0:00:00]} 93. Rg6 {[%clk 0:00:00]}  a4 {[%clk 0:00:00]} 94. Ra6 {[%clk 0:00:00]}  Nb5 {[%clk 0:00:00]} 95. h5 {[%clk 0:00:00]}  Re8 {[%clk 0:00:00]} 96. Bc5 {[%clk 0:00:00]}  Re5 {[%clk 0:00:00]} 97. Bf8 {[%clk 0:00:00]}  Rxh5 {[%clk 0:00:00]} 98. Kg2 {[%clk 0:00:00]}  Rd5 {[%clk 0:00:00]} 99. g4 {[%clk 0:00:00]}  Rd8 {[%clk 0:00:00]} 100. Bc5 {[%clk 0:00:00]}  a3 {[%clk 0:00:00]} 101. Bxa3 {[%clk 0:00:00]}  Nxa3 {[%clk 0:00:00]} 102. Rb6+ {[%clk 0:00:00]}  Kc3 {[%clk 0:00:00]} 103. Kg3 {[%clk 0:00:00]}  Nc4 {[%clk 0:00:00]} 104. Rc6 {[%clk 0:00:00]}  Kd4 {[%clk 0:00:00]} 105. Ra6 {[%clk 0:00:00]}  Ke4 {[%clk 0:00:00]} 106. Re6+ {[%clk 0:00:00]}  Ne5 {[%clk 0:00:00]} 107. Ra6 {[%clk 0:00:00]}  Rd3+ {[%clk 0:00:00]} 108. Kh4 {[%clk 0:00:00]}  Kf4 {[%clk 0:00:00]} 109. Rf6+ {[%clk 0:00:00]}  Ke4 {[%clk 0:00:00]} 110. g5 {[%clk 0:00:00]}  Rd1 {[%clk 0:00:00]} 111. g6 {[%clk 0:00:00]}  Rh1+ {[%clk 0:00:00]} 112. Kg5 {[%clk 0:00:00]}  Rg1+ {[%clk 0:00:00]} 113. Kh4 {[%clk 0:00:00]}  Nf3+ {[%clk 0:00:00]} 114. Kh3 {[%clk 0:00:00]}  Rg5 {[%clk 0:00:00]} 115. Re6+ {[%clk 0:00:00]}  Kf5 {[%clk 0:00:00]} 116. Ra6 {[%clk 0:00:00]}  Ne5 {[%clk 0:00:00]} 117. Kh4 {[%clk 0:00:00]}  Rg4+ {[%clk 0:00:00]} 118. Kh3 {[%clk 0:00:00]}  Rg5 {[%clk 0:00:00]} 119. Kh4 {[%clk 0:00:00]}  Rg4+ {[%clk 0:00:00]} 120. Kh3 {[%clk 0:00:00]}  Rg1 {[%clk 0:00:00]} 121. g7 {[%clk 0:00:00]}  Rxg7 {[%clk 0:00:00]} 122. Ra8 {[%clk 0:00:00]}  Kf4 {[%clk 0:00:00]} 123. Rf8+ {[%clk 0:00:00]}  Ke4 {[%clk 0:00:00]} 124. Re8 {[%clk 0:00:00]}  Kf4 {[%clk 0:00:00]} 125. Rf8+ {[%clk 0:00:00]}  Ke4 {[%clk 0:00:00]} 126. Re8 {[%clk 0:00:00]}  Kd5 {[%clk 0:00:00]} 127. Rd8+ {[%clk 0:00:00]}  Ke6 {[%clk 0:00:00]} 128. Re8+ {[%clk 0:00:00]}  Kf6 {[%clk 0:00:00]} 129. Rf8+ {[%clk 0:00:00]}  Nf7 {[%clk 0:00:00]} 130. Ra8 {[%clk 0:00:00]}  Kf5 {[%clk 0:00:00]} 131. Ra5+ {[%clk 0:00:00]}  Ne5 {[%clk 0:00:00]} 132. Kh2 {[%clk 0:00:00]}  Kf4 {[%clk 0:00:00]} 133. Ra4+ {[%clk 0:00:00]}  Ke3 {[%clk 0:00:00]} 134. Ra3+ {[%clk 0:00:00]}  Nd3 {[%clk 0:00:00]} 135. Ra8 {[%clk 0:00:00]}  Kd2 {[%clk 0:00:00]} 136. Rd8 {[%clk 0:00:00]}  Ke2 {[%clk 0:00:00]} 137. Re8+ {[%clk 0:00:00]}  Kf1 {[%clk 0:00:00]} 138. Kh3 {[%clk 0:00:00]}  Nf2+ {[%clk 0:00:00]} 139. Kh4 {[%clk 0:00:00]}  Kg2 {[%clk 0:00:00]} 140. Kh5 {[%clk 0:00:00]}  Kg3 {[%clk 0:00:00]} 141. Kh6 {[%clk 0:00:00]}  Rg4 {[%clk 0:00:00]} 142. Re7 {[%clk 0:00:00]}  Nh3 {[%clk 0:00:00]} 143. Rg7 {[%clk 0:00:00]}  Rxg7 {[%clk 0:00:00]} 144. Kxg7 {[%clk 0:00:00]} 1/2-1/2


[Site "https://www.chess.com"]

[Event "Titled Tuesday Blitz August 16 Early 2022"]
[White "Yurovskykh, Oleksandr"]
[Black "Khusenkhojaev, Muhammad"]
[WhiteFideId "14134020"]
[BlackFideId "14700247"]
[WhiteElo "2292"]
[BlackElo "2180"]
[Result "1-0"]
[Round "04"]
[TimeControl "180+2"]
[Date "2022.08.18"]
[WhiteClock "0:00:00"]
[BlackClock "0:00:00"]

1. d4 {[%clk 0:00:00]}  Nf6 {[%clk 0:00:00]} 2. Nf3 {[%clk 0:00:00]}  e6 {[%clk 0:00:00]} 3. Bf4 {[%clk 0:00:00]}  d5 {[%clk 0:00:00]} 4. e3 {[%clk 0:00:00]}  c5 {[%clk 0:00:00]} 5. c3 {[%clk 0:00:00]}  Bd6 {[%clk 0:00:00]} 6. Bg3 {[%clk 0:00:00]}  Qc7 {[%clk 0:00:00]} 7. dxc5 {[%clk 0:00:00]}  Qxc5 {[%clk 0:00:00]} 8. Nbd2 {[%clk 0:00:00]}  O-O {[%clk 0:00:00]} 9. Bd3 {[%clk 0:00:00]}  Nbd7 {[%clk 0:00:00]} 10. Qe2 {[%clk 0:00:00]}  b6 {[%clk 0:00:00]} 11. e4 {[%clk 0:00:00]}  dxe4 {[%clk 0:00:00]} 12. Nxe4 {[%clk 0:00:00]}  Nxe4 {[%clk 0:00:00]} 13. Qxe4 {[%clk 0:00:00]}  Nf6 {[%clk 0:00:00]} 14. Qxa8 {[%clk 0:00:00]}  Bxg3 {[%clk 0:00:00]} 15. hxg3 {[%clk 0:00:00]}  Ba6 {[%clk 0:00:00]} 16. Qxf8+ {[%clk 0:00:00]}  Kxf8 {[%clk 0:00:00]} 17. Bxa6 {[%clk 0:00:00]}  b5 {[%clk 0:00:00]} 18. a4 {[%clk 0:00:00]}  b4 {[%clk 0:00:00]} 19. O-O {[%clk 0:00:00]}  g5 {[%clk 0:00:00]} 20. Rac1 {[%clk 0:00:00]}  g4 {[%clk 0:00:00]} 21. Nd4 {[%clk 0:00:00]}  Kg7 {[%clk 0:00:00]} 22. Rfe1 {[%clk 0:00:00]}  Nd5 {[%clk 0:00:00]} 23. Rxe6 {[%clk 0:00:00]}  bxc3 {[%clk 0:00:00]} 24. bxc3 {[%clk 0:00:00]}  Nxc3 {[%clk 0:00:00]} 25. Re3 {[%clk 0:00:00]} 1-0


[Site "https://www.chess.com"]

[Event "Titled Tuesday Blitz August 16 Early 2022"]
[White "Zanette, Edgard Vinicius"]
[Black "D`Arruda, Ricardo D."]
[WhiteFideId "2109263"]
[BlackFideId "100692"]
[WhiteElo "2182"]
[BlackElo "2271"]
[Result "0-1"]
[Round "04"]
[TimeControl "180+2"]
[Date "2022.08.18"]
[WhiteClock "0:00:00"]
[BlackClock "0:00:00"]

1. e4 {[%clk 0:00:00]}  c5 {[%clk 0:00:00]} 2. Nc3 {[%clk 0:00:00]}  Nc6 {[%clk 0:00:00]} 3. Bb5 {[%clk 0:00:00]}  e6 {[%clk 0:00:00]} 4. Bxc6 {[%clk 0:00:00]}  bxc6 {[%clk 0:00:00]} 5. f4 {[%clk 0:00:00]}  d5 {[%clk 0:00:00]} 6. Nf3 {[%clk 0:00:00]}  Nf6 {[%clk 0:00:00]} 7. e5 {[%clk 0:00:00]}  Ng8 {[%clk 0:00:00]} 8. O-O {[%clk 0:00:00]}  Nh6 {[%clk 0:00:00]} 9. b3 {[%clk 0:00:00]}  c4 {[%clk 0:00:00]} 10. bxc4 {[%clk 0:00:00]}  Ba6 {[%clk 0:00:00]} 11. cxd5 {[%clk 0:00:00]}  Bxf1 {[%clk 0:00:00]} 12. Qxf1 {[%clk 0:00:00]}  cxd5 {[%clk 0:00:00]} 13. Rb1 {[%clk 0:00:00]}  Bc5+ {[%clk 0:00:00]} 14. d4 {[%clk 0:00:00]}  Be7 {[%clk 0:00:00]} 15. Qb5+ {[%clk 0:00:00]}  Kf8 {[%clk 0:00:00]} 16. h3 {[%clk 0:00:00]}  g6 {[%clk 0:00:00]} 17. g4 {[%clk 0:00:00]}  Kg7 {[%clk 0:00:00]} 18. f5 {[%clk 0:00:00]}  gxf5 {[%clk 0:00:00]} 19. g5 {[%clk 0:00:00]}  Ng8 {[%clk 0:00:00]} 20. Ne2 {[%clk 0:00:00]}  h6 {[%clk 0:00:00]} 21. gxh6+ {[%clk 0:00:00]}  Nxh6 {[%clk 0:00:00]} 22. Nf4 {[%clk 0:00:00]}  Rb8 {[%clk 0:00:00]} 23. Qxb8 {[%clk 0:00:00]}  Qxb8 {[%clk 0:00:00]} 24. Rxb8 {[%clk 0:00:00]}  Rxb8 {[%clk 0:00:00]} 25. Nh5+ {[%clk 0:00:00]}  Kh7 {[%clk 0:00:00]} 26. Ng5+ {[%clk 0:00:00]}  Bxg5 {[%clk 0:00:00]} 27. Bxg5 {[%clk 0:00:00]}  Kg6 {[%clk 0:00:00]} 28. Bxh6 {[%clk 0:00:00]}  Kxh5 {[%clk 0:00:00]} 29. c3 {[%clk 0:00:00]}  Rb1+ {[%clk 0:00:00]} 30. Kf2 {[%clk 0:00:00]}  Rb2+ {[%clk 0:00:00]} 31. Ke3 {[%clk 0:00:00]}  Kxh6 {[%clk 0:00:00]} 0-1


[Site "https://www.chess.com"]

[Event "Titled Tuesday Blitz August 16 Early 2022"]
[White "Zheenbekov, Nurgazy"]
[Black "Krsnik Cohar, Ivan Vihor"]
[WhiteFideId "13800485"]
[BlackFideId "14520044"]
[WhiteElo "1932"]
[BlackElo "2414"]
[Result "0-1"]
[Round "04"]
[TimeControl "180+2"]
[Date "2022.08.18"]
[WhiteClock "0:00:00"]
[BlackClock "0:00:00"]

1. e4 {[%clk 0:00:00]}  c5 {[%clk 0:00:00]} 2. Nf3 {[%clk 0:00:00]}  g6 {[%clk 0:00:00]} 3. c3 {[%clk 0:00:00]}  Bg7 {[%clk 0:00:00]} 4. Be2 {[%clk 0:00:00]}  d5 {[%clk 0:00:00]} 5. e5 {[%clk 0:00:00]}  d4 {[%clk 0:00:00]} 6. Bb5+ {[%clk 0:00:00]}  Bd7 {[%clk 0:00:00]} 7. Bxd7+ {[%clk 0:00:00]}  Qxd7 {[%clk 0:00:00]} 8. O-O {[%clk 0:00:00]}  Nc6 {[%clk 0:00:00]} 9. d3 {[%clk 0:00:00]}  Nxe5 {[%clk 0:00:00]} 10. Nxe5 {[%clk 0:00:00]}  Bxe5 {[%clk 0:00:00]} 11. cxd4 {[%clk 0:00:00]}  Bxd4 {[%clk 0:00:00]} 12. Nc3 {[%clk 0:00:00]}  Nf6 {[%clk 0:00:00]} 13. Bh6 {[%clk 0:00:00]}  Ng4 {[%clk 0:00:00]} 14. Bf4 {[%clk 0:00:00]}  O-O {[%clk 0:00:00]} 15. h3 {[%clk 0:00:00]}  Nf6 {[%clk 0:00:00]} 16. Re1 {[%clk 0:00:00]}  Rfe8 {[%clk 0:00:00]} 17. Qf3 {[%clk 0:00:00]}  Rad8 {[%clk 0:00:00]} 18. Rad1 {[%clk 0:00:00]}  Qf5 {[%clk 0:00:00]} 19. g4 {[%clk 0:00:00]}  Qd7 {[%clk 0:00:00]} 20. Be5 {[%clk 0:00:00]}  Bxe5 {[%clk 0:00:00]} 21. Rxe5 {[%clk 0:00:00]}  b6 {[%clk 0:00:00]} 22. Rde1 {[%clk 0:00:00]}  Qxd3 {[%clk 0:00:00]} 23. Qxd3 {[%clk 0:00:00]}  Rxd3 {[%clk 0:00:00]} 24. Rxe7 {[%clk 0:00:00]}  Kf8 {[%clk 0:00:00]} 25. Rxe8+ {[%clk 0:00:00]}  Nxe8 {[%clk 0:00:00]} 26. Kg2 {[%clk 0:00:00]}  Rd2 {[%clk 0:00:00]} 27. b3 {[%clk 0:00:00]}  Nc7 {[%clk 0:00:00]} 28. Kf3 {[%clk 0:00:00]}  Ne6 {[%clk 0:00:00]} 29. Ke3 {[%clk 0:00:00]}  Rc2 {[%clk 0:00:00]} 30. Ne4 {[%clk 0:00:00]}  Rxa2 {[%clk 0:00:00]} 31. Rd1 {[%clk 0:00:00]}  Nd4 {[%clk 0:00:00]} 32. b4 {[%clk 0:00:00]}  Nc2+ {[%clk 0:00:00]} 33. Kf4 {[%clk 0:00:00]}  cxb4 {[%clk 0:00:00]} 34. Rd7 {[%clk 0:00:00]}  b3 {[%clk 0:00:00]} 35. Nf6 {[%clk 0:00:00]}  b2 {[%clk 0:00:00]} 36. g5 {[%clk 0:00:00]}  b1=Q {[%clk 0:00:00]} 37. Nxh7+ {[%clk 0:00:00]}  Kg7 {[%clk 0:00:00]} 38. Nf6 {[%clk 0:00:00]}  Ra4+ {[%clk 0:00:00]} 39. Ke5 {[%clk 0:00:00]}  Qb2+ {[%clk 0:00:00]} 40. Kd6 {[%clk 0:00:00]}  Rd4+ {[%clk 0:00:00]} 41. Kc7 {[%clk 0:00:00]}  Rxd7+ {[%clk 0:00:00]} 0-1


[Site "https://www.chess.com"]

[Event "Titled Tuesday Blitz August 16 Early 2022"]
[White "Adewumi, Tanitoluwa"]
[Black "Zou, Chen"]
[WhiteFideId "30966396"]
[BlackFideId "8610959"]
[WhiteElo "2302"]
[BlackElo "2276"]
[Result "0-1"]
[Round "05"]
[TimeControl "180+2"]
[Date "2022.08.18"]
[WhiteClock "0:00:00"]
[BlackClock "0:00:00"]

1. e4 {[%clk 0:00:00]}  e5 {[%clk 0:00:00]} 2. Nf3 {[%clk 0:00:00]}  Nc6 {[%clk 0:00:00]} 3. Bc4 {[%clk 0:00:00]}  Bc5 {[%clk 0:00:00]} 4. O-O {[%clk 0:00:00]}  Nf6 {[%clk 0:00:00]} 5. d3 {[%clk 0:00:00]}  d6 {[%clk 0:00:00]} 6. c3 {[%clk 0:00:00]}  h6 {[%clk 0:00:00]} 7. h3 {[%clk 0:00:00]}  O-O {[%clk 0:00:00]} 8. Re1 {[%clk 0:00:00]}  a6 {[%clk 0:00:00]} 9. a4 {[%clk 0:00:00]}  Ba7 {[%clk 0:00:00]} 10. Nbd2 {[%clk 0:00:00]}  Re8 {[%clk 0:00:00]} 11. b4 {[%clk 0:00:00]}  Be6 {[%clk 0:00:00]} 12. Bxe6 {[%clk 0:00:00]}  Rxe6 {[%clk 0:00:00]} 13. Qc2 {[%clk 0:00:00]}  Qd7 {[%clk 0:00:00]} 14. Rb1 {[%clk 0:00:00]}  b5 {[%clk 0:00:00]} 15. Ra1 {[%clk 0:00:00]}  Ree8 {[%clk 0:00:00]} 16. Ra3 {[%clk 0:00:00]}  Bb6 {[%clk 0:00:00]} 17. Qa2 {[%clk 0:00:00]}  Rab8 {[%clk 0:00:00]} 18. Bb2 {[%clk 0:00:00]}  Nh5 {[%clk 0:00:00]} 19. axb5 {[%clk 0:00:00]}  axb5 {[%clk 0:00:00]} 20. Qd5 {[%clk 0:00:00]}  Nf4 {[%clk 0:00:00]} 21. Qb3 {[%clk 0:00:00]}  Nxh3+ {[%clk 0:00:00]} 22. gxh3 {[%clk 0:00:00]}  Qxh3 {[%clk 0:00:00]} 23. d4 {[%clk 0:00:00]}  Re6 {[%clk 0:00:00]} 24. Qxe6 {[%clk 0:00:00]}  fxe6 {[%clk 0:00:00]} 25. Re3 {[%clk 0:00:00]}  Qg4+ {[%clk 0:00:00]} 26. Kf1 {[%clk 0:00:00]}  Rf8 {[%clk 0:00:00]} 27. Ra1 {[%clk 0:00:00]}  exd4 {[%clk 0:00:00]} 28. cxd4 {[%clk 0:00:00]}  e5 {[%clk 0:00:00]} 29. Rc1 {[%clk 0:00:00]}  Nxd4 {[%clk 0:00:00]} 30. Bxd4 {[%clk 0:00:00]}  Bxd4 {[%clk 0:00:00]} 31. Nxd4 {[%clk 0:00:00]}  exd4 {[%clk 0:00:00]} 32. Rd3 {[%clk 0:00:00]}  Rf7 {[%clk 0:00:00]} 33. f3 {[%clk 0:00:00]}  Qg3 {[%clk 0:00:00]} 34. Ke2 {[%clk 0:00:00]}  Qg2+ {[%clk 0:00:00]} 35. Kd1 {[%clk 0:00:00]}  h5 {[%clk 0:00:00]} 36. Kc2 {[%clk 0:00:00]}  h4 {[%clk 0:00:00]} 37. e5 {[%clk 0:00:00]}  dxe5 {[%clk 0:00:00]} 38. Re1 {[%clk 0:00:00]}  h3 {[%clk 0:00:00]} 39. Rxe5 {[%clk 0:00:00]}  h2 {[%clk 0:00:00]} 40. Re8+ {[%clk 0:00:00]}  Rf8 {[%clk 0:00:00]} 41. Rxf8+ {[%clk 0:00:00]}  Kxf8 {[%clk 0:00:00]} 42. Rxd4 {[%clk 0:00:00]}  h1=Q {[%clk 0:00:00]} 43. Rf4+ {[%clk 0:00:00]}  Kg8 {[%clk 0:00:00]} 44. Re4 {[%clk 0:00:00]}  Qhh2 {[%clk 0:00:00]} 45. Rd4 {[%clk 0:00:00]}  Qxf3 {[%clk 0:00:00]} 46. Rd8+ {[%clk 0:00:00]}  Kh7 {[%clk 0:00:00]} 47. Kc1 {[%clk 0:00:00]}  Qc3+ {[%clk 0:00:00]} 48. Kd1 {[%clk 0:00:00]}  Qh5+ {[%clk 0:00:00]} 49. Ke1 {[%clk 0:00:00]}  Qce5+ {[%clk 0:00:00]} 50. Kf1 {[%clk 0:00:00]}  Qhe2+ {[%clk 0:00:00]} 51. Kg1 {[%clk 0:00:00]}  Qg3+ {[%clk 0:00:00]} 52. Kh1 {[%clk 0:00:00]}  Qeg2# {[%clk 0:00:00]} 0-1


[Site "https://www.chess.com"]

[Event "Titled Tuesday Blitz August 16 Early 2022"]
[White "Aggelis, Nikolaos"]
[Black "Santos Ruiz, Miguel"]
[WhiteFideId "4213220"]
[BlackFideId "22291482"]
[WhiteElo "2154"]
[BlackElo "2478"]
[Result "0-1"]
[Round "05"]
[TimeControl "180+2"]
[Date "2022.08.18"]
[WhiteClock "0:00:00"]
[BlackClock "0:00:00"]

1. Nf3 {[%clk 0:00:00]}  d5 {[%clk 0:00:00]} 2. d4 {[%clk 0:00:00]}  Nf6 {[%clk 0:00:00]} 3. c4 {[%clk 0:00:00]}  e6 {[%clk 0:00:00]} 4. g3 {[%clk 0:00:00]}  dxc4 {[%clk 0:00:00]} 5. Bg2 {[%clk 0:00:00]}  Nc6 {[%clk 0:00:00]} 6. O-O {[%clk 0:00:00]}  Rb8 {[%clk 0:00:00]} 7. a4 {[%clk 0:00:00]}  a6 {[%clk 0:00:00]} 8. Qc2 {[%clk 0:00:00]}  b5 {[%clk 0:00:00]} 9. Rd1 {[%clk 0:00:00]}  Be7 {[%clk 0:00:00]} 10. e4 {[%clk 0:00:00]}  O-O {[%clk 0:00:00]} 11. Nc3 {[%clk 0:00:00]}  Nb4 {[%clk 0:00:00]} 12. Qe2 {[%clk 0:00:00]}  Nd3 {[%clk 0:00:00]} 13. Bg5 {[%clk 0:00:00]}  b4 {[%clk 0:00:00]} 14. Nb1 {[%clk 0:00:00]}  a5 {[%clk 0:00:00]} 15. Ne5 {[%clk 0:00:00]}  Nxe5 {[%clk 0:00:00]} 16. dxe5 {[%clk 0:00:00]}  Nd7 {[%clk 0:00:00]} 17. Be3 {[%clk 0:00:00]}  Ba6 {[%clk 0:00:00]} 18. Nd2 {[%clk 0:00:00]}  Qc8 {[%clk 0:00:00]} 19. Nxc4 {[%clk 0:00:00]}  Nxe5 {[%clk 0:00:00]} 20. b3 {[%clk 0:00:00]}  Nxc4 {[%clk 0:00:00]} 21. bxc4 {[%clk 0:00:00]}  Rd8 {[%clk 0:00:00]} 22. e5 {[%clk 0:00:00]}  Rxd1+ {[%clk 0:00:00]} 23. Rxd1 {[%clk 0:00:00]}  Qe8 {[%clk 0:00:00]} 24. Ba7 {[%clk 0:00:00]}  Rd8 {[%clk 0:00:00]} 25. Rxd8 {[%clk 0:00:00]}  Qxd8 {[%clk 0:00:00]} 26. Be4 {[%clk 0:00:00]}  Qd7 {[%clk 0:00:00]} 27. Qf3 {[%clk 0:00:00]}  Bxc4 {[%clk 0:00:00]} 28. Kg2 {[%clk 0:00:00]}  Bd5 {[%clk 0:00:00]} 29. Bxd5 {[%clk 0:00:00]}  Qxd5 {[%clk 0:00:00]} 30. Qxd5 {[%clk 0:00:00]}  exd5 {[%clk 0:00:00]} 31. Bb8 {[%clk 0:00:00]}  b3 {[%clk 0:00:00]} 0-1


[Site "https://www.chess.com"]

[Event "Titled Tuesday Blitz August 16 Early 2022"]
[White "Ajay, Karthikeyan"]
[Black "Veiga, Jose Francisco R P Neves"]
[WhiteFideId "35011685"]
[BlackFideId "1930087"]
[WhiteElo "2168"]
[BlackElo "2273"]
[Result "1-0"]
[Round "05"]
[TimeControl "180+2"]
[Date "2022.08.18"]
[WhiteClock "0:00:00"]
[BlackClock "0:00:00"]

1. e4 {[%clk 0:00:00]}  c5 {[%clk 0:00:00]} 2. Nf3 {[%clk 0:00:00]}  e6 {[%clk 0:00:00]} 3. g3 {[%clk 0:00:00]}  Nc6 {[%clk 0:00:00]} 4. Bg2 {[%clk 0:00:00]}  Nf6 {[%clk 0:00:00]} 5. Qe2 {[%clk 0:00:00]}  e5 {[%clk 0:00:00]} 6. O-O {[%clk 0:00:00]}  g6 {[%clk 0:00:00]} 7. Nc3 {[%clk 0:00:00]}  Bg7 {[%clk 0:00:00]} 8. Nd5 {[%clk 0:00:00]}  d6 {[%clk 0:00:00]} 9. c3 {[%clk 0:00:00]}  O-O {[%clk 0:00:00]} 10. Ne1 {[%clk 0:00:00]}  Bg4 {[%clk 0:00:00]} 11. Nxf6+ {[%clk 0:00:00]} 1-0


[Site "https://www.chess.com"]